bitfinex/quotes_SOLUSD_20250819
["timestamp","ask_amount","ask_price","bid_price","bid_amount"]
[1755645546827,0.68,178.71,178.68,9.58404426]
[1755645547230,41.32,178.72,178.68,9.58404426]
[1755645547463,41.32,178.72,178.69,9.58404426]
[1755645548135,42.0,178.72,178.68,9.58404426]
[1755645548538,41.32,178.72,178.69,9.58404426]
[1755645549946,42.0,178.72,178.69,9.58404426]
[1755645550463,41.32,178.72,178.69,9.58404426]
[1755645550761,42.0,178.72,178.69,9.58404426]
[1755645551133,0.68,178.71,178.65,13.65559401]
[1755645551332,41.32,178.7,178.66,9.58404426]
[1755645551552,42.0,178.7,178.66,9.58404426]
[1755645552263,0.68,178.69,178.66,9.58404426]
[1755645552442,41.32,178.7,178.67,0.06]
[1755645552641,0.68,178.68,178.67,0.06]
[1755645553366,10.26404426,178.68,178.67,0.06]
[1755645554750,36.26404426,178.68,178.67,0.06]
[1755645556349,40.13813371,178.68,178.67,0.06]
[1755645556755,81.43813371,178.68,178.67,0.06]
[1755645562361,77.70620583,178.68,178.67,0.06]
[1755645562559,81.43623444,178.68,178.67,0.06]
[1755645563439,100.62842571,178.68,178.67,0.06]
[1755645564041,13.73775558,178.67,178.65,0.06]
[1755645564241,90.58179984,178.66,178.65,0.06]
[1755645564480,68.99182845,178.66,178.65,0.06]
[1755645565058,26.0,178.64,178.63,0.06]
[1755645565255,80.55407287,178.64,178.63,0.06]
[1755645565496,81.23407287,178.64,178.63,0.06]
[1755645567266,81.37623444,178.64,178.63,0.06]
[1755645567997,81.37188992,178.64,178.63,0.06]
[1755645568211,77.64620583,178.64,178.63,0.06]
[1755645568377,81.37107278,178.64,178.63,0.06]
[1755645568988,94.96666679,178.64,178.63,0.06]
[1755645569788,110.14856147,178.64,178.63,0.06]
[1755645570365,97.15281079,178.64,178.63,0.06]
[1755645571769,91.55496037,178.64,178.63,0.06]
[1755645573319,97.15281079,178.64,178.63,0.06]
[1755645573807,6.31449941,178.62,178.61,0.06]
[1755645574120,47.39449941,178.62,178.61,0.06]
[1755645574484,87.66009342,178.62,178.61,0.06]
[1755645574808,26.0,178.6,178.59,0.06]
[1755645574983,73.37449941,178.6,178.59,0.06]
[1755645575179,74.04449941,178.6,178.59,0.06]
[1755645576217,91.35691894,178.6,178.59,0.06]
[1755645576422,97.52925694,178.6,178.59,0.06]
[1755645576890,103.12836108,178.6,178.59,0.06]
[1755645579120,77.12836108,178.6,178.59,0.06]
[1755645579897,39.73775558,178.59,178.49,0.69]
[1755645580103,6.17233784,178.51,178.49,0.69]
[1755645580333,41.02,178.5,178.49,0.69]
[1755645581717,32.172338,178.56,178.49,0.69]
[1755645582037,6.17233784,178.54,178.49,6.86233784]
[1755645582244,16.850619,178.58,178.5,6.86233784]
[1755645582539,0.14216157,178.56,178.51,6.86233784]
[1755645582828,41.02,178.55,178.52,0.69]
[1755645583032,6.17233784,178.58,178.53,6.17233784]
[1755645583233,41.0,178.57,178.54,0.69]
[1755645583607,6.17233784,178.62,178.56,6.17233784]
[1755645583940,6.17233784,178.6,178.57,0.69]
[1755645584140,41.0,178.59,178.57,0.69]
[1755645584798,6.17233784,178.58,178.54,0.69]
[1755645585004,40.98,178.57,178.54,0.69]
[1755645585205,6.17233784,178.56,178.52,0.69]
[1755645585425,40.98,178.55,178.52,0.69]
[1755645585631,40.98,178.54,178.53,0.69]
[1755645586639,40.98,178.56,178.53,6.86233784]
[1755645586818,9.77077795,178.65,178.55,6.17233784]
[1755645587022,40.98,178.64,178.59,6.17233784]
[1755645587227,47.15233784,178.64,178.59,6.17233784]
[1755645587429,6.17233784,178.63,178.59,0.69]
[1755645587624,6.17233784,178.63,178.53,13.59559401]
[1755645587625,6.17233784,178.61,178.55,6.17233784]
[1755645587808,41.67,178.62,178.44,16.17233784]
[1755645587809,47.17233784,178.6,178.54,6.86233784]
[1755645588010,6.17233784,178.58,178.54,0.69]
[1755645588239,40.98,178.57,178.52,6.86233784]
[1755645588423,47.15233784,178.57,178.52,6.17233784]
[1755645588718,47.15233784,178.57,178.53,0.69]
[1755645588932,6.17233784,178.56,178.51,6.86233784]
[1755645589210,6.17233784,178.56,178.52,0.69]
[1755645589734,6.17233784,178.56,178.55,0.06]
[1755645590937,6.84233784,178.56,178.55,0.06]
[1755645592414,6.98449941,178.56,178.55,0.06]
[1755645592618,32.98449941,178.56,178.55,0.06]
[1755645592827,20.58009342,178.56,178.55,0.06]
[1755645593031,20.58009342,178.56,178.45,6.17233784]
[1755645593032,0.14216157,178.52,178.45,0.69]
[1755645593235,6.17233784,178.49,178.45,0.69]
[1755645593443,40.92,178.48,178.44,6.17233784]
[1755645593648,40.92,178.48,178.46,0.69]
[1755645595432,40.92,178.48,178.47,0.69]
[1755645595948,40.92,178.48,178.45,6.17233784]
[1755645596335,40.92,178.48,178.46,0.69]
[1755645596731,40.92,178.48,178.47,0.69]
[1755645597458,6.17233784,178.51,178.47,0.69]
[1755645597459,26.0,178.53,178.47,6.86233784]
[1755645597632,40.88,178.52,178.48,6.86233784]
[1755645597958,40.88,178.52,178.49,0.69]
[1755645598631,47.05233784,178.52,178.49,0.69]
[1755645599347,47.05233784,178.52,178.47,6.17233784]
[1755645599540,6.17233784,178.48,178.41,13.59559401]
[1755645599739,40.88,178.47,178.43,0.69]
[1755645599951,40.88,178.47,178.44,0.69]
[1755645600134,40.88,178.47,178.44,6.17233784]
[1755645600444,40.88,178.47,178.45,0.69]
[1755645600646,40.88,178.47,178.46,0.69]
[1755645600961,40.88,178.47,178.43,6.86233784]
[1755645601845,40.88,178.47,178.41,13.59559401]
[1755645602047,40.88,178.47,178.43,6.86233784]
[1755645602261,40.88,178.47,178.44,0.69]
[1755645602458,40.88,178.47,178.44,6.86233784]
[1755645603457,40.88,178.47,178.45,0.69]
[1755645603634,40.88,178.47,178.45,6.17233784]
[1755645603836,40.88,178.47,178.46,6.86233784]
[1755645604266,0.14216157,178.55,178.46,6.17233784]
[1755645604463,6.1770162,178.62,178.51,6.17233784]
[1755645604464,0.69,178.56,178.51,6.17233784]
[1755645604663,18.26133242,178.62,178.49,0.7]
[1755645604664,40.96,178.54,178.49,0.7]
[1755645604962,41.65,178.53,178.5,6.17233784]
[1755645605259,47.82233784,178.52,178.47,6.17233784]
[1755645605468,40.96,178.51,178.47,6.17233784]
[1755645605760,47.82233784,178.51,178.46,6.87233784]
[1755645606062,6.86233784,178.5,178.44,6.17233784]
[1755645606666,6.17233784,178.48,178.43,13.59559401]
[1755645606832,40.96,178.47,178.43,6.17233784]
[1755645607165,40.96,178.47,178.44,6.87233784]
[1755645608252,0.69,178.46,178.43,6.17233784]
[1755645609333,40.96,178.47,178.43,6.17233784]
[1755645609574,40.96,178.47,178.41,14.29559401]
[1755645609575,6.86233784,178.46,178.41,13.59559401]
[1755645609733,40.96,178.47,178.42,6.17233784]
[1755645609933,47.13233784,178.47,178.42,6.17233784]
[1755645610133,6.86233784,178.46,178.41,6.17233784]
[1755645610334,0.69,178.45,178.41,6.17233784]
[1755645611145,6.17233784,178.46,178.4,0.06]
[1755645611470,6.86233784,178.44,178.4,0.06]
[1755645611636,40.96,178.43,178.4,0.06]
[1755645611835,41.65,178.43,178.4,0.06]
[1755645612255,40.96,178.43,178.4,0.06]
[1755645612440,0.69,178.42,178.4,0.06]
[1755645613135,47.13233784,178.43,178.4,0.06]
[1755645613342,0.69,178.41,178.4,0.06]
[1755645613741,0.69,178.42,178.4,0.06]
[1755645614147,47.13233784,178.43,178.4,0.06]
[1755645614148,40.96,178.43,178.4,0.06]
[1755645614538,41.65,178.43,178.4,0.06]
[1755645616045,0.69,178.42,178.4,0.06]
[1755645616363,41.65,178.43,178.4,0.06]
[1755645616561,40.92,178.42,178.41,6.17233784]
[1755645616863,40.92,178.42,178.41,6.87233784]
[1755645617759,131.0,178.46,178.41,6.87233784]
[1755645617963,40.9,178.45,178.43,6.17233784]
[1755645618459,40.9,178.45,178.41,0.7]
[1755645618640,0.69,178.44,178.4,0.06]
[1755645618963,0.69,178.43,178.4,0.06]
[1755645619175,40.9,178.42,178.4,0.06]
[1755645619552,0.69,178.41,178.4,0.06]
[1755645621681,6.86233784,178.41,178.4,0.06]
[1755645625096,0.69,178.41,178.4,0.06]
[1755645625288,6.86233784,178.41,178.4,0.06]
[1755645625467,40.9,178.42,178.4,0.06]
[1755645625667,0.69,178.45,178.4,6.23233784]
[1755645625964,40.8,178.44,178.42,6.17233784]
[1755645626159,40.8,178.44,178.4,0.06]
[1755645626160,41.49,178.43,178.4,0.06]
[1755645626594,40.8,178.43,178.4,6.23233784]
[1755645626802,6.17233784,178.47,178.42,6.17233784]
[1755645627094,41.49,178.46,178.42,6.17233784]
[1755645627302,40.8,178.46,178.43,6.17233784]
[1755645627464,0.69,178.45,178.43,6.17233784]
[1755645628093,40.8,178.46,178.42,6.17233784]
[1755645628399,41.49,178.46,178.42,6.17233784]
[1755645629466,40.8,178.46,178.42,6.17233784]
[1755645629668,0.69,178.45,178.41,6.17233784]
[1755645629883,0.69,178.44,178.41,6.17233784]
[1755645630167,41.49,178.43,178.4,0.06]
[1755645630370,40.78,178.42,178.4,0.06]
[1755645630699,41.47,178.42,178.4,0.06]
[1755645631078,41.47,178.42,178.4,6.23233784]
[1755645631079,40.78,178.42,178.4,6.23233784]
[1755645631275,40.78,178.42,178.41,6.17233784]
[1755645631594,40.78,178.42,178.4,6.23233784]
[1755645631801,0.69,178.41,178.4,0.06]
[1755645631966,6.86233784,178.41,178.4,0.06]
[1755645634786,0.69,178.41,178.4,0.06]
[1755645634993,6.86233784,178.41,178.4,0.06]
[1755645635702,0.69,178.41,178.4,0.06]
[1755645635909,6.86233784,178.41,178.4,0.06]
[1755645639214,40.7,178.41,178.4,0.06]
[1755645639883,41.42,178.41,178.4,0.06]
[1755645640094,40.7,178.41,178.4,0.06]
[1755645640905,131.0,178.5,178.4,6.23233784]
[1755645640906,6.17233784,178.46,178.4,6.23233784]
[1755645641095,40.7,178.45,178.42,6.17233784]
[1755645641401,40.7,178.45,178.44,6.17233784]
[1755645642006,131.0,178.47,178.44,6.88233784]
[1755645642207,46.59233784,178.52,178.46,6.17233784]
[1755645642517,6.17233784,178.5,178.45,6.17233784]
[1755645642725,41.48,178.51,178.4,0.77]
[1755645642726,6.89233784,178.49,178.44,6.17233784]
[1755645643020,40.76,178.48,178.45,6.17233784]
[1755645643325,0.72,178.47,178.42,6.17233784]
[1755645643492,0.72,178.46,178.42,6.17233784]
[1755645643695,40.78,178.45,178.43,6.17233784]
[1755645644105,40.78,178.45,178.44,6.17233784]
[1755645644687,40.42,178.52,178.44,6.88233784]
[1755645644900,40.78,178.51,178.48,6.17233784]
[1755645645192,40.78,178.51,178.47,6.17233784]
[1755645645404,41.5,178.51,178.46,6.17233784]
[1755645645723,0.72,178.5,178.46,6.17233784]
[1755645646093,40.78,178.51,178.46,6.17233784]
[1755645646294,41.5,178.51,178.46,6.88233784]
[1755645646492,41.5,178.51,178.46,6.17233784]
[1755645647220,41.5,178.51,178.47,6.17233784]
[1755645648827,131.0,178.54,178.5,6.17233784]
[1755645649129,40.74,178.53,178.51,6.17233784]
[1755645649497,40.74,178.53,178.5,6.17233784]
[1755645649694,0.72,178.52,178.48,6.17233784]
[1755645650024,0.72,178.51,178.49,6.17233784]
[1755645650187,41.44,178.5,178.47,6.17233784]
[1755645650391,40.72,178.49,178.46,6.17233784]
[1755645650697,41.44,178.49,178.44,6.17233784]
[1755645650927,0.72,178.48,178.44,6.17233784]
[1755645651739,40.72,178.49,178.44,0.71]
[1755645651907,40.72,178.49,178.48,6.17233784]
[1755645651908,40.7,178.49,178.48,6.17233784]
[1755645654131,40.7,178.49,178.47,6.17233784]
[1755645654791,40.7,178.49,178.44,0.77]
[1755645654792,0.72,178.48,178.44,0.06]
[1755645655033,6.17233784,178.47,178.44,0.06]
[1755645655237,41.4,178.46,178.44,0.06]
[1755645655593,40.68,178.46,178.44,0.06]
[1755645655796,40.66,178.49,178.45,6.88233784]
[1755645656097,40.66,178.49,178.47,6.17233784]
[1755645656401,40.66,178.49,178.45,0.71]
[1755645656732,41.38,178.49,178.47,6.17233784]
[1755645657102,41.38,178.49,178.46,6.17233784]
[1755645658841,0.72,178.48,178.45,6.17233784]
[1755645659002,40.66,178.49,178.44,6.23233784]
[1755645659204,0.72,178.47,178.44,6.23233784]
[1755645659409,40.66,178.49,178.44,0.06]
[1755645659410,46.83233784,178.49,178.44,0.06]
[1755645659616,40.78,178.46,178.44,0.06]
[1755645660505,0.72,178.45,178.44,0.06]
[1755645661835,6.89233784,178.45,178.44,0.06]
[1755645662612,0.72,178.45,178.44,0.06]
[1755645662811,40.74,178.45,178.44,0.06]
[1755645664254,0.67,178.5,178.44,6.23233784]
[1755645664547,40.76,178.49,178.46,13.59559401]
[1755645664723,0.7,178.55,178.48,6.17233784]
[1755645664909,40.78,178.54,178.51,6.17233784]
[1755645665240,40.78,178.54,178.46,13.59559401]
[1755645665241,0.67,178.53,178.49,6.17233784]
[1755645665543,0.67,178.53,178.48,13.59559401]
[1755645665724,0.67,178.53,178.5,6.17233784]
[1755645665923,0.03,178.55,178.52,6.17233784]
[1755645666123,40.83,178.55,178.54,6.17233784]
[1755645666847,0.03,178.55,178.54,20.44793185]
[1755645667050,0.03,178.55,178.54,20.59009342]
[1755645667555,0.03,178.57,178.56,13.59559401]
[1755645667709,0.03,178.57,178.56,26.08243126]
[1755645667913,0.03,178.57,178.56,26.76243126]
[1755645668149,0.03,178.57,178.56,20.59009342]
[1755645668349,0.03,178.57,178.56,23.86936441]
[1755645668654,0.03,178.57,178.56,23.18936441]
[1755645668819,0.03,178.57,178.56,24.01152598]
[1755645669943,0.03,178.57,178.56,40.27559401]
[1755645670152,0.03,178.57,178.56,49.86936441]
[1755645670669,0.03,178.57,178.56,49.18936441]
[1755645671025,0.03,178.57,178.56,26.0]
[1755645671227,0.03,178.57,178.56,35.5937704]
[1755645671476,0.7,178.57,178.54,9.5937704]
[1755645671829,0.7,178.57,178.55,9.5937704]
[1755645672030,0.03,178.57,178.56,23.18936441]
[1755645672328,0.03,178.57,178.53,26.68]
[1755645672560,0.03,178.57,178.56,9.5937704]
[1755645674229,0.03,178.57,178.56,23.86936441]
[1755645674434,0.03,178.57,178.56,24.01152598]
[1755645674646,0.03,178.57,178.56,23.86936441]
[1755645675734,0.03,178.57,178.56,24.01152598]
[1755645676350,0.03,178.59,178.58,39.59559401]
[1755645676831,0.03,178.59,178.58,49.18936441]
[1755645677466,0.03,178.59,178.58,50.01152598]
[1755645677760,0.03,178.59,178.58,49.18936441]
[1755645678264,0.03,178.59,178.58,49.86936441]
[1755645678841,0.03,178.59,178.58,40.41775558]
[1755645679166,0.03,178.59,178.58,49.33152598]
[1755645679459,0.03,178.59,178.58,49.18936441]
[1755645681067,0.03,178.59,178.58,39.59559401]
[1755645681362,0.03,178.59,178.58,49.18936441]
[1755645682179,0.03,178.59,178.58,39.59559401]
[1755645682346,0.03,178.59,178.58,49.18936441]
[1755645683046,0.03,178.59,178.58,55.4539582]
[1755645683376,0.03,178.59,178.58,54.7739582]
[1755645684641,0.03,178.59,178.58,55.4539582]
[1755645685667,0.03,178.59,178.58,70.45611977]
[1755645687556,0.03,178.59,178.58,28.91611977]
[1755645687760,0.03,178.59,178.58,28.7739582]
[1755645687964,0.03,178.59,178.58,54.7739582]
[1755645688469,0.03,178.59,178.58,55.4539582]
[1755645688797,0.03,178.59,178.58,55.59611977]
[1755645689333,0.03,178.59,178.58,54.91611977]
[1755645689529,0.03,178.59,178.58,13.59559401]
[1755645689774,0.7,178.59,178.56,9.5937704]
[1755645689943,0.67,178.58,178.56,9.5937704]
[1755645690144,0.67,178.58,178.55,13.65559401]
[1755645690360,0.67,178.58,178.56,9.5937704]
[1755645690744,0.03,178.59,178.57,23.18936441]
[1755645691065,0.03,178.59,178.58,23.33152598]
[1755645691576,0.03,178.59,178.58,24.01152598]
[1755645691933,0.03,178.59,178.58,23.33152598]
[1755645692139,0.03,178.59,178.58,49.33152598]
[1755645692880,0.03,178.59,178.58,50.01152598]
[1755645693057,0.03,178.59,178.58,90.85152598]
[1755645693680,0.03,178.63,178.62,39.59559401]
[1755645693979,0.03,178.63,178.62,90.15152598]
[1755645694181,0.03,178.63,178.62,90.81152598]
[1755645694752,0.03,178.63,178.62,81.21775558]
[1755645694962,0.03,178.63,178.62,90.81152598]
[1755645696084,0.03,178.63,178.62,81.21775558]
[1755645696260,0.03,178.63,178.62,90.81152598]
[1755645697877,0.03,178.67,178.63,0.14216157]
[1755645698188,0.03,178.67,178.66,23.33152598]
[1755645698355,0.03,178.69,178.67,0.14216157]
[1755645698552,0.03,178.69,178.68,64.17152598]
[1755645699090,0.03,178.71,178.7,39.59559401]
[1755645699266,0.03,178.72,178.7,90.15152598]
[1755645699473,0.03,178.72,178.71,23.99152598]
[1755645700075,0.03,178.72,178.71,23.33152598]
[1755645700395,0.03,178.72,178.71,64.17152598]
[1755645700765,0.03,178.72,178.71,23.33152598]
[1755645700970,0.03,178.72,178.71,64.15152598]
[1755645702075,0.03,178.72,178.71,54.55775558]
[1755645702279,0.03,178.72,178.71,64.15152598]
[1755645702978,0.03,178.72,178.71,64.81152598]
[1755645703295,0.1,178.75,178.74,39.73775558]
[1755645703479,0.1,178.75,178.74,90.11152598]
[1755645704105,0.1,178.75,178.74,80.51775558]
[1755645704273,0.1,178.75,178.74,90.11152598]
[1755645704663,0.81,178.75,178.74,89.96936441]
[1755645705284,0.81,178.75,178.74,39.59559401]
[1755645705494,0.81,178.75,178.74,49.18936441]
[1755645705683,0.1,178.75,178.74,49.18936441]
[1755645705878,0.1,178.75,178.74,49.33152598]
[1755645706081,0.1,178.75,178.74,89.94936441]
[1755645706082,0.81,178.75,178.74,89.94936441]
[1755645706900,0.81,178.75,178.74,49.18936441]
[1755645707096,0.81,178.75,178.73,9.5937704]
[1755645707280,0.81,178.75,178.72,13.59559401]
[1755645707471,0.81,178.75,178.72,23.18936441]
[1755645707667,0.1,178.75,178.74,23.18936441]
[1755645707871,0.81,178.75,178.74,23.18936441]
[1755645708970,0.1,178.75,178.74,23.18936441]
[1755645709215,0.1,178.75,178.74,23.33152598]
[1755645709573,0.1,178.77,178.76,0.14216157]
[1755645709874,0.1,178.77,178.76,64.07152598]
[1755645710794,0.1,178.77,178.76,64.05152598]
[1755645710969,0.81,178.77,178.76,89.90936441]
[1755645711683,0.81,178.77,178.76,49.18936441]
[1755645712094,0.81,178.77,178.76,35.5937704]
[1755645712319,0.81,178.77,178.76,49.18936441]
[1755645712606,0.1,178.77,178.76,49.18936441]
[1755645712770,0.81,178.77,178.76,49.18936441]
[1755645712980,0.81,178.77,178.75,23.18936441]
[1755645713190,0.71,178.76,178.75,23.18936441]
[1755645713398,0.71,178.76,178.74,9.5937704]
[1755645714306,0.71,178.75,178.74,13.59559401]
[1755645714497,0.71,178.75,178.64,10.2537704]
[1755645714678,9.5937704,178.74,178.68,9.6537704]
[1755645714999,0.71,178.73,178.69,13.59559401]
[1755645715379,0.71,178.73,178.69,23.18936441]
[1755645715599,0.71,178.72,178.71,9.5937704]
[1755645716308,0.71,178.72,178.7,9.5937704]
[1755645716477,0.71,178.71,178.7,23.18936441]
[1755645717400,0.71,178.71,178.68,0.06]
[1755645717899,9.5937704,178.72,178.68,0.06]
[1755645718110,0.71,178.7,178.68,0.06]
[1755645718406,0.71,178.7,178.68,9.6537704]
[1755645718588,0.71,178.72,178.69,9.5937704]
[1755645718783,0.71,178.71,178.69,9.5937704]
[1755645719298,0.71,178.7,178.69,23.18936441]
[1755645720473,0.71,178.74,178.69,23.18936441]
[1755645720681,0.71,178.74,178.73,9.5937704]
[1755645720977,0.81,178.77,178.73,23.18936441]
[1755645721180,0.71,178.76,178.74,9.5937704]
[1755645721484,0.71,178.76,178.73,13.59559401]
[1755645721485,0.1,178.77,178.75,9.5937704]
[1755645721791,0.1,178.77,178.76,9.5937704]
[1755645722202,0.1,178.77,178.76,23.18936441]
[1755645725087,0.81,178.77,178.76,23.18936441]
[1755645725486,0.81,178.77,178.76,9.5937704]
[1755645726404,0.81,178.77,178.72,9.5937704]
[1755645726601,9.5937704,178.76,178.71,35.5937704]
[1755645726815,0.71,178.75,178.71,35.5937704]
[1755645727000,0.71,178.75,178.72,23.18936441]
[1755645727320,0.71,178.75,178.73,9.5937704]
[1755645727488,0.71,178.74,178.7,26.0]
[1755645727693,0.71,178.73,178.71,23.18936441]
[1755645728419,0.71,178.76,178.72,9.5937704]
[1755645728603,0.71,178.76,178.73,9.5937704]
[1755645729531,0.1,178.77,178.75,9.5937704]
[1755645729691,0.1,178.77,178.76,23.33152598]
[1755645730183,0.1,178.77,178.76,24.04152598]
[1755645732913,0.03,178.81,178.8,13.73775558]
[1755645733223,0.03,178.81,178.8,23.33152598]
[1755645733399,0.03,178.81,178.8,24.04152598]
[1755645734341,0.03,178.81,178.8,23.33152598]
[1755645734810,0.03,178.81,178.8,19.46550099]
[1755645735012,0.03,178.81,178.8,39.59559401]
[1755645735221,0.74,178.81,178.8,49.18936441]
[1755645735394,0.03,178.81,178.8,49.18936441]
[1755645736004,0.03,178.81,178.8,48.46741741]
[1755645737718,0.03,178.81,178.8,24.04152598]
[1755645738101,0.03,178.81,178.8,23.33152598]
[1755645738636,0.03,178.81,178.8,24.04152598]
[1755645739203,0.03,178.81,178.8,29.60637323]
[1755645739627,0.03,178.81,178.8,28.89637323]
[1755645740326,0.03,178.81,178.8,19.30260283]
[1755645740621,0.03,178.81,178.8,28.89637323]
[1755645741221,0.03,178.81,178.8,29.60637323]
[1755645741535,0.03,178.86,178.8,29.60637323]
[1755645741536,0.03,178.86,178.85,39.59559401]
[1755645741736,0.03,178.86,178.85,49.33152598]
[1755645742034,0.03,178.86,178.85,50.04152598]
[1755645743009,0.03,178.86,178.85,39.73775558]
[1755645743199,0.03,178.86,178.85,89.91152598]
[1755645744503,0.03,178.86,178.85,49.18936441]
[1755645744695,0.74,178.86,178.85,23.18936441]
[1755645746939,0.74,178.86,178.82,13.59559401]
[1755645747138,0.74,178.86,178.75,0.77]
[1755645747139,10.3337704,178.86,178.81,9.5937704]
[1755645747446,0.71,178.85,178.81,13.59559401]
[1755645747652,0.71,178.85,178.76,40.74216157]
[1755645747653,9.5937704,178.84,178.79,9.5937704]
[1755645747821,0.71,178.83,178.79,9.5937704]
[1755645748351,0.71,178.85,178.82,9.5937704]
[1755645748652,0.03,178.86,178.82,23.18936441]
[1755645749148,0.71,178.85,178.82,13.59559401]
[1755645749447,0.71,178.84,178.8,35.6537704]
[1755645749619,0.71,178.84,178.81,13.59559401]
[1755645750127,10.3037704,178.84,178.81,13.59559401]
[1755645750341,0.71,178.83,178.81,13.59559401]
[1755645750547,0.71,178.82,178.81,13.59559401]
[1755645750712,10.3037704,178.82,178.8,0.06]
[1755645751046,0.71,178.81,178.8,0.06]
[1755645751347,0.71,178.84,178.8,23.24936441]
[1755645751517,0.71,178.83,178.8,13.65559401]
[1755645751719,10.3037704,178.82,178.8,0.06]
[1755645752048,10.3037704,178.81,178.8,0.06]
[1755645752628,0.71,178.81,178.8,0.06]
[1755645752834,10.3037704,178.81,178.8,0.06]
[1755645754125,0.71,178.81,178.8,0.06]
[1755645755234,10.3037704,178.81,178.8,0.06]
[1755645756045,0.71,178.81,178.8,0.06]
[1755645756237,0.69,178.84,178.8,23.24936441]
[1755645756441,0.72,178.86,178.82,9.5937704]
[1755645756656,0.72,178.86,178.83,9.5937704]
[1755645757164,0.69,178.85,178.82,9.5937704]
[1755645757455,0.03,178.86,178.82,9.5937704]
[1755645757666,0.69,178.85,178.82,9.5937704]
[1755645758743,0.69,178.84,178.8,0.06]
[1755645759054,0.69,178.84,178.81,13.59559401]
[1755645759224,10.3137704,178.86,178.81,9.5937704]
[1755645759431,0.69,178.85,178.81,9.5937704]
[1755645759625,9.6237704,178.86,178.81,9.5937704]
[1755645759626,0.03,178.86,178.83,9.5937704]
[1755645759832,0.03,178.86,178.83,23.18936441]
[1755645760128,0.03,178.86,178.84,9.5937704]
[1755645760333,0.03,178.86,178.84,23.18936441]
[1755645760567,0.03,178.86,178.85,23.18936441]
[1755645761371,0.72,178.86,178.8,0.06]
[1755645761536,0.72,178.86,178.82,13.59559401]
[1755645761865,0.69,178.85,178.8,0.06]
[1755645762052,0.69,178.85,178.82,13.59559401]
[1755645762358,0.69,178.84,178.82,13.59559401]
[1755645763265,0.69,178.83,178.81,13.59559401]
[1755645763469,0.69,178.83,178.8,0.06]
[1755645763765,0.69,178.83,178.8,9.6537704]
[1755645764746,0.03,178.86,178.83,13.59559401]
[1755645765067,0.03,178.86,178.85,9.5937704]
[1755645765267,0.03,178.86,178.83,0.66]
[1755645765444,0.03,178.86,178.84,14.25559401]
[1755645765633,0.03,178.86,178.85,0.66]
[1755645766144,0.03,178.86,178.85,10.2537704]
[1755645767955,0.03,178.86,178.85,9.5937704]
[1755645768264,0.03,178.86,178.85,10.2537704]
[1755645768468,0.03,178.86,178.85,9.5937704]
[1755645768776,0.72,178.86,178.84,13.59559401]
[1755645769150,0.03,178.86,178.84,9.5937704]
[1755645769354,0.03,178.86,178.85,23.18936441]
[1755645769543,0.03,178.86,178.85,23.99152598]
[1755645770574,0.03,178.86,178.85,23.18936441]
[1755645771071,0.03,178.86,178.85,49.18936441]
[1755645772066,0.03,178.86,178.85,49.99152598]
[1755645772246,0.03,178.86,178.85,23.99152598]
[1755645773344,0.03,178.86,178.85,23.33152598]
[1755645774265,0.03,178.86,178.85,23.18936441]
[1755645776173,0.03,178.86,178.85,13.59559401]
[1755645776360,0.72,178.86,178.85,39.59559401]
[1755645776766,0.72,178.86,178.82,9.5937704]